bitfinex-derivatives/quotes_BNBF0:USTF0_20250331
["timestamp","ask_amount","ask_price","bid_price","bid_amount"]
[1743441676529,0.923,607.09,605.55,4.73457873]
[1743441676730,0.923,607.09,605.56,2.02882589]
[1743441677026,0.923,607.09,605.7,2.51043242]
[1743441679331,0.923,607.09,605.59,2.70575284]
[1743441679531,0.923,607.09,605.59,4.73457873]
[1743441679732,0.923,607.09,605.6,2.02882589]
[1743441680128,0.923,607.09,605.59,2.70575284]
[1743441680326,0.923,607.09,605.33,2.02882589]
[1743441680529,0.923,607.09,605.34,2.02882589]
[1743441680725,0.923,607.09,605.35,2.02882589]
[1743441681028,0.923,607.09,605.36,2.02882589]
[1743441681231,0.923,607.09,605.37,4.73457873]
[1743441681432,0.923,607.09,605.38,2.02882589]
[1743441681633,0.923,607.09,605.39,2.02882589]
[1743441681834,0.923,607.09,605.4,2.02882589]
[1743441682035,0.923,607.09,605.38,2.02882589]
[1743441682330,0.923,607.09,605.37,2.70575284]
[1743441682534,0.923,607.09,605.29,2.02882589]
[1743441682729,0.923,607.09,605.3,2.02882589]
[1743441682928,0.923,607.09,605.31,2.02882589]
[1743441683130,0.923,607.09,605.32,2.02882589]
[1743441683434,0.923,607.09,605.33,2.02882589]
[1743441683635,0.923,607.09,605.34,2.02882589]
[1743441683830,0.923,607.09,605.35,2.02882589]
[1743441684034,0.923,607.09,605.36,2.02882589]
[1743441684231,0.923,607.09,605.35,2.70575284]
[1743441684232,0.923,607.09,605.37,2.02882589]
[1743441684538,0.923,607.09,605.38,2.02882589]
[1743441684735,0.923,607.09,605.39,4.73457873]
[1743441684938,0.923,607.09,605.72,2.51043242]
[1743441685332,0.923,607.09,605.73,2.02882589]
[1743441685532,0.923,607.09,605.74,2.02882589]
[1743441685736,0.923,607.09,605.76,0.33016376]
[1743441686032,0.923,607.09,605.77,2.02882589]
[1743441686330,0.923,607.09,605.79,0.33014741]
[1743441686536,0.923,607.09,605.8,2.02882589]
[1743441686932,0.923,607.09,605.79,0.33014741]
[1743441687129,0.28684589,607.24,605.82,0.33013106]
[1743441689433,0.908,607.23,605.82,0.33013106]
[1743441690133,0.908,607.23,605.83,2.02882589]
[1743441690331,0.908,607.23,605.84,2.02882589]
[1743441690531,0.908,607.23,605.83,2.02882589]
[1743441690739,0.30283356,607.22,605.84,2.02882589]
[1743441690938,0.30283356,607.22,605.85,2.02882589]
[1743441691135,0.30283356,607.22,605.86,2.02882589]
[1743441691338,0.30283356,607.22,605.87,2.02882589]
[1743441691537,0.30283356,607.22,605.88,2.02882589]
[1743441691737,0.28687545,607.21,605.89,4.73457873]
[1743441691937,0.30283356,607.2,605.9,2.02882589]
[1743441692136,0.30283356,607.2,605.91,2.02882589]
[1743441692338,0.30283356,607.2,605.92,2.02882589]
[1743441692539,0.30283356,607.2,605.93,2.02882589]
[1743441692734,0.30283356,607.2,605.95,0.33006023]
[1743441692935,0.30283356,607.2,605.96,4.73457873]
[1743441693138,0.30283356,607.2,605.98,0.33004389]
[1743441693336,0.30283356,607.2,605.99,2.02882589]
[1743441693639,0.30283356,607.2,606.01,0.33002755]
[1743441693839,0.30283356,607.2,606.02,2.02882589]
[1743441694139,0.30283356,607.2,605.96,2.70575284]
[1743441694140,0.30283356,607.2,606.04,0.33001122]
[1743441694341,0.30283356,607.2,606.05,2.02882589]
[1743441694541,0.30283356,607.19,606.07,0.32999488]
[1743441694742,0.28683643,607.19,606.08,2.02882589]
[1743441694941,0.28683643,607.19,606.1,0.32997855]
[1743441695139,0.28683643,607.19,606.11,2.02882589]
[1743441695336,0.28683643,607.19,606.13,0.32996221]
[1743441695540,0.28683643,607.19,606.14,2.02882589]
[1743441695741,0.30283276,607.18,606.16,0.32994588]
[1743441695937,0.30283276,607.18,606.17,2.02882589]
[1743441696138,0.30283276,607.18,606.18,5.06451373]
[1743441696342,0.30283276,607.18,606.19,2.02882589]
[1743441696539,0.30283332,607.17,606.2,2.35875]
[1743441696738,0.30284149,607.18,606.21,0.32991867]
[1743441696937,0.28683643,607.19,606.21,0.32991867]
[1743441697136,0.30284155,607.18,606.21,0.32991867]
[1743441699141,0.28683643,607.19,606.21,0.32991867]
[1743441700144,0.908,607.23,606.21,0.32991867]
[1743441700544,0.28684589,607.23,606.21,0.32991867]
[1743441703441,0.98264519,607.95,606.21,0.32991867]
[1743441703643,1.31162502,607.94,606.21,0.32991867]
[1743441703841,0.28678561,607.23,606.21,0.32991867]
[1743441704046,0.32898524,607.93,606.21,0.32991867]
[1743441704244,0.30272603,607.92,606.21,0.32991867]
[1743441704445,0.28678679,607.23,606.21,0.32991867]
[1743441704641,0.32899606,607.91,606.21,0.32991867]
[1743441704847,0.28678561,607.23,606.21,0.32991867]
[1743441705246,0.32899606,607.91,606.21,0.32991867]
[1743441705445,0.28678679,607.23,606.21,0.32991867]
[1743441705644,0.32899606,607.91,606.21,0.32991867]
[1743441705841,0.30272616,607.9,606.21,0.32991867]
[1743441706045,0.28676789,607.3,606.21,0.32991867]
[1743441706246,0.32899606,607.91,606.21,0.32991867]
[1743441706442,0.28676552,607.3,606.21,0.32991867]
[1743441706649,0.32899606,607.91,606.21,0.32991867]
[1743441706847,0.30270448,607.9,606.21,0.32991867]
[1743441707040,0.28676316,607.3,606.21,0.32991867]
[1743441707244,0.32899606,607.91,606.21,0.32991867]
[1743441707446,0.28675962,607.3,606.21,0.32991867]
[1743441707748,0.32899606,607.91,606.21,0.32991867]
[1743441707947,0.28675371,607.3,606.21,0.32991867]
[1743441708342,0.32899606,607.91,606.21,0.32991867]
[1743441708544,0.28675253,607.3,606.21,0.32991867]
[1743441708744,0.32899606,607.91,606.21,0.32991867]
[1743441708946,0.30270154,607.9,606.21,0.32991867]
[1743441709148,0.28675253,607.3,606.21,0.32991867]
[1743441709447,0.32899606,607.91,606.21,0.32991867]
[1743441709645,0.28675253,607.3,606.21,0.32991867]
[1743441709846,0.32899606,607.91,606.21,0.32991867]
[1743441710046,1.31122705,607.91,606.21,0.32991867]
[1743441710353,0.30272129,607.9,606.21,0.32991867]
[1743441710747,0.58947264,607.9,606.21,0.32991867]
[1743441710951,0.30272129,607.89,606.21,0.32991867]
[1743441713753,0.28675135,607.9,606.21,0.32991867]
[1743441714054,0.30270344,607.89,606.21,0.32991867]
[1743441715555,0.5894288,607.88,606.21,0.32991867]
[1743441715755,0.30270344,607.87,606.21,0.32991867]
[1743441717851,0.30270344,607.87,606.22,2.02096544]
[1743441718052,0.30270344,607.87,606.24,0.32990234]
[1743441718753,0.28668756,607.86,606.24,0.32990234]
[1743441719152,0.3026332,607.85,606.24,0.32990234]
[1743441721554,0.3026332,607.84,606.24,0.32990234]
[1743441721759,0.28668166,607.84,606.24,0.32990234]
[1743441721956,0.3026332,607.83,606.24,0.32990234]
[1743441724662,0.3026332,607.9,606.24,0.32990234]
[1743441724859,0.28669937,607.82,606.24,0.32990234]
[1743441725059,0.3026332,607.89,606.24,0.32990234]
[1743441725060,0.3026332,607.81,606.24,0.32990234]
[1743441725256,0.3026332,607.9,606.24,0.32990234]
[1743441725458,0.28668993,607.81,606.24,0.32990234]
[1743441725662,0.3026332,607.8,606.24,0.32990234]
[1743441725862,0.28669111,607.8,606.24,0.32990234]
[1743441726064,0.3026332,607.79,606.24,0.32990234]
[1743441727569,0.3026332,607.9,606.24,0.32990234]
[1743441727768,0.28670292,607.78,606.24,0.32990234]
[1743441728068,0.3026332,607.77,606.24,0.32990234]
[1743441728260,0.28671709,607.77,606.24,0.32990234]
[1743441728460,0.3026332,607.76,606.24,0.32990234]
[1743441733572,0.3026332,607.9,606.24,0.32990234]
[1743441733871,0.2867041,607.75,606.24,0.32990234]
[1743441734066,0.3026332,607.74,606.24,0.32990234]
[1743441734371,0.3026332,607.73,606.24,0.32990234]
[1743441736574,0.28670055,607.72,606.24,0.32990234]
[1743441736769,0.3026332,607.71,606.24,0.32990234]
[1743441748581,0.28673008,607.7,606.24,0.32990234]
[1743441748973,0.3026332,607.69,606.24,0.32990234]
[1743441750876,0.28673008,607.7,606.24,0.32990234]
[1743441751076,0.30268903,607.69,606.24,0.32990234]
[1743441751782,0.28673363,607.68,606.24,0.32990234]
[1743441752182,0.30268903,607.67,606.24,0.32990234]
[1743441754681,0.28674898,607.66,606.24,0.32990234]
[1743441755084,0.30268903,607.65,606.24,0.32990234]
[1743441756787,0.28674898,607.66,606.24,0.32990234]
[1743441756980,0.3027036,607.65,606.24,0.32990234]
[1743441757585,0.3027036,607.64,606.24,0.32990234]
[1743441757787,0.3027036,607.63,606.24,0.32990234]
[1743441760685,0.58944077,607.62,606.24,0.32990234]
[1743441760881,0.3027036,607.61,606.24,0.32990234]
[1743441762483,0.28673717,607.62,606.24,0.32990234]
[1743441762687,0.30270242,607.61,606.24,0.32990234]
[1743441764488,0.30270242,607.61,606.25,2.02096544]
[1743441764693,0.30270242,607.61,606.26,2.02096544]
[1743441764887,0.30270242,607.61,606.28,0.32988058]
[1743441766687,0.58942542,607.6,606.28,0.32988058]
[1743441766993,0.30270242,607.59,606.28,0.32988058]
[1743441767593,0.286723,607.6,606.28,0.32988058]
[1743441767793,0.30265263,607.59,606.28,0.32988058]
[1743441769396,0.30266684,607.58,606.28,0.32988058]
[1743441769590,0.28672654,607.58,606.28,0.32988058]
[1743441769892,0.30266684,607.57,606.28,0.32988058]
[1743441772790,0.30266684,607.57,606.29,2.02096544]
[1743441772994,0.30266684,607.57,606.31,0.32986426]
[1743441773195,0.30266684,607.57,606.32,2.02096544]
[1743441773496,0.30266684,607.57,606.34,0.32984794]
[1743441773899,0.30266684,607.57,606.35,2.02096544]
[1743441774098,0.30266684,607.57,606.37,0.32983162]
[1743441774796,0.30266684,607.57,606.38,2.02096544]
[1743441775095,0.30266684,607.57,606.4,0.3298153]
[1743441775300,0.30266684,607.57,606.41,2.02096544]
[1743441775494,0.30266684,607.57,606.43,0.32979898]
[1743441775698,1.234,607.72,606.43,0.32979898]
[1743441775699,0.28667694,607.56,606.43,0.32979898]
[1743441778505,1.234,607.72,606.43,0.32979898]
[1743441778805,0.28667221,607.55,606.43,0.32979898]
[1743441779202,1.234,607.72,606.43,0.32979898]
[1743441779401,0.28669229,607.54,606.43,0.32979898]
[1743441779598,1.234,607.72,606.43,0.32979898]
[1743441779807,0.32899606,607.91,606.43,0.32979898]
[1743441780108,0.28674662,607.53,606.43,0.32979898]
[1743441780302,0.32899606,607.91,606.43,0.32979898]
[1743441780503,0.28672654,607.52,606.43,0.32979898]
[1743441780816,0.32899606,607.91,606.43,0.32979898]
[1743441781109,0.28673363,607.51,606.43,0.32979898]
[1743441781306,0.98578231,607.9,606.43,0.32979898]
[1743441781508,0.28673126,607.5,606.43,0.32979898]
[1743441781902,0.98580786,607.9,606.43,0.32979898]
[1743441782105,0.28673008,607.49,606.43,0.32979898]
[1743441782303,0.98580786,607.9,606.43,0.32979898]
[1743441782508,0.30267121,607.89,606.43,0.32979898]
[1743441782710,0.28672654,607.48,606.43,0.32979898]
[1743441782909,0.32899606,607.91,606.43,0.32979898]
[1743441783106,1.12873599,607.47,606.43,0.32979898]
[1743441783511,0.842,607.47,606.43,0.32979898]
[1743441783706,0.28678561,607.46,606.43,0.32979898]
[1743441790512,0.842,607.47,606.43,0.32979898]
[1743441790818,0.28679743,607.45,606.43,0.32979898]
[1743441793422,0.842,607.47,606.43,0.32979898]
[1743441793619,0.28675962,607.44,606.43,0.32979898]
[1743441796520,0.842,607.47,606.43,0.32979898]
[1743441796922,0.28677852,607.43,606.43,0.32979898]
[1743441799329,0.842,607.47,606.43,0.32979898]
[1743441799730,0.28682934,607.42,606.43,0.32979898]
[1743441808430,0.842,607.47,606.43,0.32979898]
[1743441808732,0.28674544,607.41,606.43,0.32979898]
[1743441814535,0.842,607.47,606.43,0.32979898]
[1743441814837,0.28676552,607.4,606.43,0.32979898]
[1743441817439,0.842,607.47,606.43,0.32979898]
[1743441817841,0.28677379,607.46,606.43,0.32979898]
[1743441820538,0.842,607.47,606.43,0.32979898]
[1743441820744,0.28675725,607.45,606.43,0.32979898]
[1743441823445,0.842,607.47,606.43,0.32979898]
[1743441823845,0.28674071,607.44,606.43,0.32979898]
[1743441826444,0.842,607.47,606.43,0.32979898]
[1743441826644,0.2867419,607.43,606.43,0.32979898]
[1743441829653,0.842,607.47,606.43,0.32979898]
[1743441829852,0.28671945,607.43,606.43,0.32979898]
[1743441832449,0.842,607.47,606.43,0.32979898]
[1743441832650,0.28670528,607.43,606.43,0.32979898]
[1743441835552,0.842,607.47,606.43,0.32979898]
[1743441835953,0.28670292,607.43,606.43,0.32979898]
[1743441838554,0.32899606,607.91,606.43,0.32979898]
[1743441838752,0.28664624,607.43,606.43,0.32979898]
[1743441838956,0.881,607.9,606.43,0.32979898]
[1743441839159,0.30264341,607.89,606.43,0.32979898]
[1743441839359,0.28665923,607.43,606.43,0.32979898]
[1743441839557,0.881,607.9,606.43,0.32979898]
[1743441839757,0.28665923,607.43,606.43,0.32979898]
[1743441840059,0.881,607.9,606.43,0.32979898]
[1743441840255,0.28666041,607.43,606.43,0.32979898]
[1743441840660,0.881,607.9,606.43,0.32979898]
[1743441840858,0.28668166,607.43,606.43,0.32979898]
[1743441841058,0.881,607.9,606.43,0.32979898]
[1743441841253,0.3026436,607.89,606.43,0.32979898]
[1743441841458,0.28668048,607.43,606.43,0.32979898]
[1743441841655,0.881,607.9,606.43,0.32979898]
[1743441841860,0.28668638,607.42,606.43,0.32979898]
[1743441842060,0.881,607.9,606.43,0.32979898]
[1743441842262,0.30264362,607.89,606.43,0.32979898]
[1743441842955,0.28668638,607.88,606.43,0.32979898]
[1743441843159,0.30264362,607.87,606.43,0.32979898]
[1743441844765,0.28668756,607.86,606.43,0.32979898]
[1743441844963,0.30264362,607.85,606.43,0.32979898]
[1743441847761,0.28669465,607.84,606.43,0.32979898]
[1743441847963,0.30264793,607.83,606.43,0.32979898]
[1743441850763,0.28668284,607.82,606.43,0.32979898]
[1743441850965,0.30264793,607.81,606.43,0.32979898]
[1743441853769,0.28666867,607.8,606.43,0.32979898]
[1743441854166,0.30264793,607.79,606.43,0.32979898]
[1743441856663,0.28669229,607.78,606.43,0.32979898]
[1743441857068,0.30264793,607.77,606.43,0.32979898]
[1743441857766,0.28669229,607.78,606.43,0.32979898]
[1743441857966,0.30265941,607.77,606.43,0.32979898]
[1743441858669,0.30265941,607.77,606.44,2.02096544]
[1743441858870,0.30265941,607.77,606.46,0.32978267]
[1743441859071,0.30265941,607.77,606.46,2.35074811]
[1743441859271,0.30265941,607.77,606.46,0.32978267]
[1743441859571,0.30265941,607.77,606.47,2.02096544]
[1743441859874,0.58934461,607.76,606.49,0.32976636]
[1743441860071,0.30265941,607.75,606.49,0.32976636]
[1743441860566,0.30265941,607.75,606.5,2.02096544]
[1743441860767,0.30265941,607.75,606.51,2.02096544]
[1743441860973,0.30265941,607.75,606.49,0.32976636]
[1743441860974,0.30265941,607.75,606.52,2.02096544]
[1743441861168,0.30265941,607.75,606.53,2.02096544]
[1743441861371,0.30265941,607.75,606.54,2.35070461]
[1743441861566,0.30265941,607.75,606.55,2.35069918]
[1743441861766,0.30265941,607.75,606.56,2.35069374]
[1743441862073,0.30265941,607.75,606.57,0.32972286]
[1743441862373,1.274,607.74,606.57,0.32972286]
[1743441862569,0.30265941,607.73,606.57,0.32972286]
[1743441863872,1.56064152,607.74,606.57,0.32972286]
[1743441864071,0.30265913,607.73,606.57,0.32972286]
[1743441865874,0.28666867,607.72,606.57,0.32972286]
[1743441866076,0.30265913,607.71,606.57,0.32972286]
[1743441866271,0.32910975,607.7,606.57,0.32972286]
[1743441866471,0.30265913,607.69,606.57,0.32972286]
[1743441866774,0.32910975,607.7,606.57,0.32972286]
[1743441867974,0.28666867,607.72,606.57,0.32972286]
[1743441868577,1.274,607.74,606.57,0.32972286]
[1743441868975,0.2867041,607.71,606.57,0.32972286]
[1743441872280,1.274,607.74,606.57,0.32972286]
[1743441872479,1.274,607.74,606.58,2.02956978]
[1743441872683,1.274,607.74,606.6,0.32970656]
[1743441872877,1.274,607.74,606.61,2.02956978]
[1743441873074,1.274,607.74,606.63,0.32969025]
[1743441873277,1.274,607.74,606.64,4.73532262]
[1743441873479,1.274,607.74,606.66,0.32967395]
[1743441904401,0.28653059,608.25,606.66,0.32967395]
[1743441904607,0.97322888,608.87,606.66,0.32967395]
[1743441904806,0.28650582,608.25,606.66,0.32967395]
[1743441905007,0.32847734,608.87,606.66,0.32967395]
[1743441905202,0.30223941,608.86,606.66,0.32967395]
[1743441905405,0.28635258,608.34,606.66,0.32967395]
[1743441905603,0.32847734,608.87,606.66,0.32967395]
[1743441905805,0.28635376,608.33,606.66,0.32967395]
[1743441906202,0.32847734,608.87,606.66,0.32967395]
[1743441906402,0.28637379,608.32,606.66,0.32967395]
[1743441906607,0.32847734,608.87,606.66,0.32967395]
[1743441906803,0.28637733,608.31,606.66,0.32967395]
[1743441907104,0.30225998,608.86,606.66,0.32967395]
[1743441907105,1.052,608.86,606.66,0.32967395]
[1743441907310,0.30224773,608.85,606.66,0.32967395]
[1743441907610,0.30224773,608.84,606.66,0.32967395]
[1743441907809,0.30224773,608.83,606.66,0.32967395]
[1743441908005,0.30224773,608.82,606.66,0.32967395]
[1743441908210,0.30224773,608.81,606.66,0.32967395]
[1743441908409,0.30224773,608.8,606.66,0.32967395]
[1743441908606,0.30224773,608.79,606.66,0.32967395]
[1743441908807,0.30224773,608.78,606.66,0.32967395]
[1743441909111,0.30224773,608.77,606.66,0.32967395]
[1743441909307,0.30224773,608.76,606.66,0.32967395]
[1743441909504,0.30224773,608.75,606.66,0.32967395]
[1743441909705,0.30224773,608.74,606.66,0.32967395]
[1743441909909,0.30224773,608.73,606.66,0.32967395]
[1743441910112,0.30224773,608.72,606.66,0.32967395]
[1743441910311,0.30224773,608.71,606.66,0.32967395]
[1743441910512,0.30224773,608.7,606.66,0.32967395]
[1743441910709,0.30224773,608.69,606.66,0.32967395]
[1743441910906,0.30224773,608.68,606.66,0.32967395]
[1743441911105,0.30224773,608.67,606.66,0.32967395]
[1743441911309,0.30224773,608.66,606.66,0.32967395]
[1743441911510,0.30224773,608.69,606.66,0.32967395]
[1743441911706,0.30224773,608.68,606.66,0.32967395]
[1743441911911,0.30224773,608.67,606.66,0.32967395]
[1743441912110,0.30224773,608.66,606.66,0.32967395]
[1743441912306,0.30224773,608.65,606.66,0.32967395]
[1743441912505,0.30224773,608.64,606.66,0.32967395]
[1743441912705,0.30224773,608.69,606.66,0.32967395]
[1743441912910,0.30224773,608.68,606.66,0.32967395]
[1743441913107,0.30224773,608.67,606.66,0.32967395]
[1743441913310,0.30224773,608.66,606.66,0.32967395]
[1743441913506,0.30224773,608.65,606.66,0.32967395]
[1743441913710,0.30224773,608.85,606.66,0.32967395]
[1743441913913,0.28631842,608.64,606.66,0.32967395]
[1743441914214,0.30224773,608.63,606.66,0.32967395]
[1743441914412,0.28631724,608.63,606.66,0.32967395]
[1743441914611,0.30224773,608.62,606.66,0.32967395]
[1743441916815,0.28635376,608.61,606.66,0.32967395]
[1743441917017,0.30224773,608.6,606.66,0.32967395]
[1743441919714,0.30224773,608.85,606.66,0.32967395]
[1743441919917,0.28634434,608.59,606.66,0.32967395]
[1743441920117,0.30224773,608.58,606.66,0.32967395]
[1743441920521,0.28636437,608.58,606.66,0.32967395]
[1743441920918,0.30225486,608.57,606.66,0.32967395]
[1743441922217,0.30228005,608.56,606.66,0.32967395]
[1743441922415,0.32848813,608.85,606.66,0.32967395]
[1743441922617,0.30227744,608.84,606.66,0.32967395]
[1743441922920,0.97223125,608.88,606.66,0.32967395]
[1743441922921,0.28639736,608.55,606.66,0.32967395]
[1743441923117,0.30227744,608.54,606.66,0.32967395]
[1743441923322,0.30227744,608.82,606.66,0.32967395]
[1743441923522,0.30227744,608.81,606.66,0.32967395]
[1743441923822,0.30227744,608.8,606.66,0.32967395]
[1743441924028,0.61486564,608.83,606.66,0.32967395]
[1743441924227,0.30227141,608.82,606.66,0.32967395]
[1743441925421,1.41927141,608.82,606.66,0.32967395]
[1743441925621,0.30227141,608.81,606.66,0.32967395]
[1743441925928,0.30227635,608.8,606.66,0.32967395]
[1743441926126,0.3285205,608.79,606.66,0.32967395]
[1743441926321,0.30227635,608.78,606.66,0.32967395]
[1743441926525,0.63080225,608.78,606.66,0.32967395]
[1743441926728,0.30227635,608.77,606.66,0.32967395]
[1743441927128,0.63080765,608.77,606.66,0.32967395]
[1743441927329,0.32853669,608.76,606.66,0.32967395]
[1743441927531,0.30230399,608.75,606.66,0.32967395]
[1743441927729,0.32854749,608.74,606.66,0.32967395]
[1743441927929,0.30230399,608.73,606.66,0.32967395]
[1743441928726,0.28641268,608.72,606.66,0.32967395]
[1743441929030,0.30230399,608.71,606.66,0.32967395]
[1743441930530,0.32856908,608.7,606.66,0.32967395]
[1743441930930,0.30230399,608.69,606.66,0.32967395]
[1743441931126,0.32857987,608.68,606.66,0.32967395]
[1743441931328,0.30230399,608.67,606.66,0.32967395]
[1743441931726,0.28642683,608.66,606.66,0.32967395]
[1743441931923,0.30230399,608.65,606.66,0.32967395]
[1743441934635,0.30230399,608.67,606.66,0.32967395]
[1743441934829,0.28637851,608.64,606.66,0.32967395]
[1743441935132,0.30230399,608.63,606.66,0.32967395]
[1743441937337,0.30230454,608.62,606.66,0.32967395]
[1743441937531,0.30230454,608.61,606.66,0.32967395]
[1743441937732,0.5886748,608.61,606.66,0.32967395]
[1743441937937,0.30230454,608.6,606.66,0.32967395]
[1743441939338,0.30230376,608.59,606.66,0.32967395]
[1743441939536,0.30230376,608.6,606.66,0.32967395]
[1743441939736,0.30230376,608.59,606.66,0.32967395]
[1743441940036,0.30230376,608.58,606.66,0.32967395]
[1743441940336,0.30230376,608.57,606.66,0.32967395]
[1743441940533,0.30230376,608.6,606.66,0.32967395]
[1743441940938,0.30230348,608.59,606.66,0.32967395]
[1743441941131,0.30230348,608.6,606.66,0.32967395]
[1743441941333,0.30230348,608.59,606.66,0.32967395]
[1743441941531,0.30230348,608.6,606.66,0.32967395]
[1743441941733,0.30230348,608.59,606.66,0.32967395]
[1743441941936,0.30230348,608.6,606.66,0.32967395]
[1743441942538,0.28637026,608.61,606.66,0.32967395]
[1743441943538,0.32857987,608.68,606.66,0.32967395]
[1743441943735,0.28633845,608.6,606.66,0.32967395]
[1743441944136,0.32857987,608.68,606.66,0.32967395]
[1743441944338,0.28633845,608.59,606.66,0.32967395]
[1743441944543,0.32857987,608.68,606.66,0.32967395]
[1743441944941,0.28633727,608.58,606.66,0.32967395]
[1743441945241,0.32857987,608.68,606.66,0.32967395]
[1743441945440,0.28633845,608.57,606.66,0.32967395]
[1743441945637,0.32857987,608.68,606.66,0.32967395]
[1743441945941,0.28638558,608.56,606.66,0.32967395]
[1743441946136,0.32857987,608.68,606.66,0.32967395]
[1743441946542,0.28638558,608.55,606.66,0.32967395]
[1743441947042,0.286395,608.54,606.66,0.32967395]
[1743441948039,0.30225628,608.53,606.66,0.32967395]
[1743441949745,0.58864421,608.52,606.66,0.32967395]
[1743441949943,0.30225628,608.51,606.66,0.32967395]
[1743441951044,0.30226838,608.5,606.66,0.32967395]
[1743441951243,0.30226838,608.49,606.66,0.32967395]
[1743441951440,0.28638793,608.52,606.66,0.32967395]
[1743441951441,0.30226838,608.51,606.66,0.32967395]
[1743441951643,0.30226838,608.5,606.66,0.32967395]
[1743441951837,0.30226838,608.51,606.66,0.32967395]
[1743441952642,0.30226843,608.5,606.66,0.32967395]
[1743441952939,0.30226843,608.49,606.66,0.32967395]
[1743441956142,0.30226843,608.49,606.67,2.02956978]
[1743441956346,0.30226843,608.49,606.69,0.32965765]
[1743441956546,0.30226843,608.49,606.7,4.73532262]
[1743441956743,0.30226843,608.49,606.72,0.32964135]
[1743441956943,0.30226843,608.49,606.73,2.02956978]
[1743441957150,0.30226843,608.49,606.75,0.32962505]
[1743441957344,0.30226843,608.49,606.76,2.02956978]
[1743441957543,0.2863573,608.5,606.78,0.32960875]
[1743441957748,0.30226839,608.49,606.79,2.02956978]
[1743441957945,0.30226839,608.49,606.81,0.32959245]
[1743441958253,0.30226839,608.49,606.82,2.02956978]
[1743441958451,0.30226839,608.49,606.84,0.32957616]
[1743441958650,0.30226839,608.49,606.85,2.02956978]
[1743441958846,0.30226839,608.49,606.87,0.32955987]
[1743441959049,0.30226839,608.49,606.88,2.02956978]
[1743441959245,0.30226839,608.49,606.9,0.32954358]
[1743441959446,0.30226839,608.49,606.91,2.02956978]
[1743441959750,0.30226839,608.49,606.93,0.32952729]
[1743441959948,0.30226839,608.49,606.94,2.02956978]
[1743441960149,0.30226839,608.49,606.96,0.329511]
[1743441960349,0.30226839,608.49,606.96,2.35908078]
[1743441960544,0.30226839,608.49,606.96,0.329511]
[1743441960946,0.2863573,608.5,606.96,0.329511]
[1743441961146,0.30227039,608.49,606.96,0.329511]
[1743441962056,0.30227039,608.49,606.97,2.02956978]
[1743441962255,0.30227039,608.49,606.99,0.32949471]
[1743441962653,0.2863573,608.5,606.99,0.32949471]
[1743441967457,0.32857987,608.68,606.99,0.32949471]
[1743441967657,0.3022138,608.67,606.99,0.32949471]
[1743441967959,0.5885016,608.67,606.99,0.32949471]
[1743441968257,0.3022138,608.66,606.99,0.32949471]
[1743441968957,0.2862878,608.67,606.99,0.32949471]
[1743441969750,0.2862878,608.67,607.0,2.02956978]
[1743441969951,0.2862878,608.67,607.02,0.32947843]
[1743441970155,0.30212611,608.66,607.03,2.02956978]
[1743441970356,0.2862878,608.67,607.05,0.32946215]
[1743441970556,0.30214765,608.66,607.05,0.32946215]
[1743441970754,0.28622423,608.66,607.05,0.32946215]
[1743441970953,0.30214765,608.65,607.05,0.32946215]
[1743441971753,0.28622423,608.66,607.05,0.32946215]
[1743441973562,1.117,608.82,607.05,0.32946215]
[1743441973763,0.28623011,608.65,607.05,0.32946215]
[1743441974061,1.117,608.82,607.05,0.32946215]
[1743441974257,0.28623129,608.64,607.05,0.32946215]
[1743441974460,1.117,608.82,607.05,0.32946215]
[1743441974658,0.30214219,608.81,607.05,0.32946215]
[1743441974854,0.28623482,608.63,607.05,0.32946215]
[1743441975059,1.117,608.82,607.05,0.32946215]
[1743441975259,0.28623482,608.62,607.05,0.32946215]
[1743441975459,1.117,608.82,607.05,0.32946215]
[1743441975662,0.30214386,608.81,607.05,0.32946215]
[1743441975857,0.2862513,608.61,607.05,0.32946215]
[1743441976059,1.117,608.82,607.05,0.32946215]
[1743441976261,0.28625012,608.6,607.05,0.32946215]
[1743441976656,1.117,608.82,607.05,0.32946215]
[1743441976855,0.28625012,608.59,607.05,0.32946215]
[1743441977058,1.117,608.82,607.05,0.32946215]
[1743441977260,0.30214441,608.81,607.05,0.32946215]
[1743441977460,0.28625483,608.58,607.05,0.32946215]
[1743441977657,1.117,608.82,607.05,0.32946215]
[1743441977863,0.28626896,608.57,607.05,0.32946215]
[1743441978263,1.117,608.82,607.05,0.32946215]
[1743441978564,0.28626543,608.56,607.05,0.32946215]
[1743441978758,0.30217169,608.55,607.06,2.02956978]
[1743441979062,0.30217169,608.55,606.7,2.70575284]
[1743441979063,0.30217169,608.54,607.08,0.32944587]
[1743441979257,0.30217169,608.54,607.09,4.73532262]
[1743441979462,0.30217169,608.54,607.11,0.32942959]
[1743441979655,0.30217169,608.81,607.12,2.02956978]
[1743441979862,1.117,608.82,607.14,0.32941331]
[1743441979863,0.2862513,608.53,607.14,0.32941331]
[1743441980062,0.30217169,608.52,607.15,2.02956978]